Cogmind - Beta 15 @@@ ROGUE MODE // 2025.07.20 @ 15:18:33 Player: Singularius Result: Destroyed by IJ-DQS(R) with Subdweller Beam Cannon Performance ------------- Evolutions (0) 0 Regions Visited (2) 400 Robots Destroyed (27) 135 Value Destroyed (741) 741 Prototype IDs (5) 100 Alien Tech Used (0) 0 Bonus (0) 0 TOTAL SCORE: 1376 Bonus ------- None Cogmind --------- Core Integrity 0/250 Matter 81/300 Energy 168/170 System Corruption 0% Temperature Warning (334) Movement Core (550) Ox10 Location -10/Subcaves Parts ------- > --- POWER (1) -------- Makeshift Power Source > --- PROPULSION (2) --- (None) > --- UTILITY (2) ------ Large Storage Unit Makeshift Light Armor Plating > --- WEAPON (2) ------- Makeshift Laser Battle Rifle > --- INVENTORY (15) --- Light Ion Engine Light Treads Aluminum Leg Aluminum Leg Subdweller Monowheel Improved Heat Sink Small Storage Unit Signal Interpreter Scrap Shield Subdweller Shrapnel Launcher Mining Laser Makeshift Spear Peak State ------------ > --- POWER ------------ Makeshift Power Source > --- PROPULSION ------- Makeshift Leg Makeshift Leg > --- UTILITY ---------- Large Storage Unit Makeshift Light Armor Plating > --- WEAPON ----------- Makeshift Laser Subdweller Shrapnel Launcher > --- INVENTORY -------- Light Ion Engine Light Treads Aluminum Leg Aluminum Leg Subdweller Monowheel Improved Heat Sink Small Storage Unit Signal Interpreter Scrap Shield Battle Rifle Mining Laser Makeshift Spear [Rating: 25] Favorites ----------- Power Ion Engine Engine Ion Engine Power Core Light Nuclear Core Propulsion Light Treads Treads Light Treads Leg Aluminum Leg Utility Large Storage Unit Device Seismic Detector Storage Large Storage Unit Protection Makeshift Light Armor Plating Weapon Small Laser Energy Gun Small Laser Ballistic Gun Assault Rifle Ballistic Cannon Light Cannon Launcher Subdweller Shrapnel Launcher Special Weapon Mining Laser Piercing Weapon Makeshift Spear Build | -11 -10 -10 ------- Run | Yrd Mat Sub Slots Evolved . | . . . Power . | . . . Propulsion . | . . . Utility . | . . . Weapon . | . . . Parts Attached 33 | 7 4 22 Power 6 | 1 2 3 Engine 5 | 1 1 3 Core 1 | . 1 . Reactor . | . . . Propulsion 9 | 2 . 7 Treads 3 | 2 . 1 Leg 6 | . . 6 Wheel . | . . . Hover . | . . . Flight . | . . . Utility 6 | 2 1 3 Device 3 | 1 . 2 Storage 2 | 1 1 . Processor . | . . . Hackware . | . . . Protection 1 | . . 1 Artifact . | . . . Weapon 12 | 2 1 9 Energy Gun 4 | 1 . 3 Energy Cannon . | . . . Ballistic Gun 4 | 1 . 3 Ballistic Cannon 1 | . 1 . Launcher 1 | . . 1 Special Weapon 1 | . . 1 Impact Weapon . | . . . Slashing Weapon . | . . . Piercing Weapon 1 | . . 1 Special Melee Weapon . | . . . Unidentified Prototypes . | . . . Parts Lost 17 | . 1 16 Power 3 | . 1 2 Propulsion 6 | . . 6 Utility 2 | . . 2 Weapon 6 | . . 6 Highest Loss Streak 4 | . 1 4 To Critical Strikes . | . . . Average Backups 12 | 3 12 12 Power 1 | . 1 1 Propulsion 3 | 1 4 3 Utility 4 | . 2 5 Weapon 2 | . 3 2 Tool/Special . | . . . Unused Backups 8 | . 4 4 Power . | . . . Propulsion 4 | . 3 1 Utility 4 | . 1 3 Weapon . | . . . Tool/Special . | . . . Average Slot Usage (%) 97 | . 99 96 Engine 10 | . 12 9 Core 3 | . 1 4 Treads 11 | . 28 . Leg 15 | . . 26 Device 10 | . 14 8 Storage 14 | . 14 14 Protection 1 | . . 2 Energy Gun 14 | . 14 15 Ballistic Gun 5 | . 6 5 Ballistic Cannon 3 | . 7 . Launcher 3 | . . 5 Peak Build Rating 25 | 7 10 25 Average Rating 12 | 5 8 16 On Entrance 5 | . 7 10 Naked Turns . | . . . Heaviest Build 38 | 12 30 38 Greatest Support 40 | 40 40 40 Greatest Overweight (x) 3 | 3 . 1 Average Overweight (x) . | . . . Largest Inventory Capacity 15 | 8 15 15 Average Capacity 14 | 7 14 15 Most Carried 15 | 4 15 15 Average Carried 12 | 3 13 13 Final Capacity 15 | 8 15 15 Final Carried 15 | 4 15 13 Class Distribution -------------------- 64% | Mutant 20% | Derelict-Mutant 15% | Scavenger-Mutant Dominant Class ---------------- Mutant | -10/Materials Mutant | -10/Subcaves Resources | -11 -10 -10 ----------- Run | Yrd Mat Sub Matter Collected 671 | 285 182 204 Remotely . | . . . Salvage Created 783 | 65 467 251 Parts 53 | 11 32 10 Haulers Intercepted 1 | . 1 . Recyclers Shooed . | . . . Parts Field Recycled . | . . . Retrieved Matter . | . . . Parts Self-Destructed 3 | . . 3 Prevented . | . . . Kills | -11 -10 -10 ------- Run | Yrd Mat Sub Combat Hostiles Destroyed 22 | . 12 10 Melee 1 | . . 1 Guns 15 | . 11 4 Cannons 2 | . 1 1 AOE 4 | . . 4 Classes Destroyed 6 | 1 4 1 Tunneler 3 | 3 . . Hauler 1 | . 1 . Watcher 1 | . 1 . Swarmer 5 | . 3 2 Grunt 9 | . 9 . Subdweller 8 | . . 8 Best Kill Streak 4 | 1 4 3 Combat Bots Only 4 | . 4 3 Max Kills in Single Turn 2 | 1 2 1 Gunslinging 1 | . 1 . Exploded 1 | . . 1 Melee 1 | . . 1 Uniques/NPCs Destroyed . | . . . Combat | -11 -10 -10 -------- Run | Yrd Mat Sub Hostile Shots Fired 156 | . 49 107 Missed 38 | . 8 30 Hits 118 | . 41 77 Projectile 118 | . 41 77 Critical Strikes 2 | . . 2 Damage Taken 2180 | . 462 1718 Core 278 | . 48 230 Absorbed by Shields . | . . . Core Remaining (%) 100 | 100 . . Volleys Fired 100 | 5 46 49 Largest 2 | 2 2 2 Hottest 100 | 60 70 100 Shots Fired 190 | 10 91 89 Gun 152 | 10 80 62 Cannon 27 | . 11 16 Launcher 7 | . . 7 Special 4 | . . 4 Kinetic 88 | 5 46 37 Thermal 102 | 5 45 52 Explosive . | . . . Electromagnetic . | . . . Robot Hit Streak 25 | 3 10 25 Robot Miss Streak 5 | 1 5 3 Penetration Max . | . . . Secondary Targets 4 | . 3 1 Max Gunslinging Chain 1 | . 1 1 Shots Hit Robots 143 | 7 59 77 Core Hits 49 | 3 25 21 Critical Kills . | . . . Critical Parts Destroyed . | . . . Critical Strikes 2 | . . 2 Burn 2 | . . 2 Melee Attacks 5 | . . 5 Impact . | . . . Slashing . | . . . Piercing 5 | . . 5 Sneak Attacks . | . . . Combat Hostiles . | . . . Follow-up Attacks . | . . . Damage Inflicted 2293 | 82 726 1485 Guns 1321 | 82 601 638 Cannons 364 | . 123 241 Explosions 459 | . . 459 Melee 147 | . . 147 Ramming 2 | . 2 . Kinetic 1269 | 40 386 843 Thermal 875 | 42 338 495 Explosive . | . . . Electromagnetic . | . . . Impact . | . . . Slashing . | . . . Piercing 147 | . . 147 Highest Corruption . | . . . Average Corruption . | . . . Corruption Purged . | . . . Corruption Blocked . | . . . Overload Shots . | . . . Overflow Damage 55 | . 2 53 Projectiles 2 | . 2 . Explosions 53 | . . 53 Melee . | . . . Knockbacks 7 | . 2 5 Impact . | . . . Kinetic 7 | . 2 5 Secondary . | . . . Self-Inflicted Damage 81 | . . 81 Shots 2 | . . 2 Rammed 1 | . 1 . Targets Rammed 1 | . 1 . Kicked . | . . . Crushed . | . . . Highest Temperature 325 | . 45 325 Average Temperature 22 | . 16 41 Received Heat Transfer 906 | . 222 684 Siege Activations . | . . . Martial Activations . | . . . Shielding Activations . | . . . Robots Disrupted . | . . . Combat Hostiles . | . . . Robots Corrupted . | . . . Combat Hostiles . | . . . Parts Fried . | . . . Impact Corruptions . | . . . Robots Melted . | . . . Combat Hostiles . | . . . Parts Melted . | . . . Heat Transferred 2157 | 100 775 1282 Parts Sabotaged . | . . . Parts Stolen . | . . . Parts Stripped . | . . . Power Chain Reactions . | . . . Alert | -11 -10 -10 ------- Run | Yrd Mat Sub Maximum Alert Level . | . . . Low Security (%) 100 | 100 100 . Level 1 . | . . . Level 2 . | . . . Level 3 . | . . . Level 4 . | . . . Level 5 . | . . . High Security . | . . . Max Security . | . . . Peak Influence 96 | 5 96 . Initial . | . . . Average 22 | . 24 . Influence Increases 448 | 15 378 55 Destroy 0b10 Robot/C 280 | . 240 40 Destroy 0b10 Robot/NC 25 | 15 10 . Destroy Leader 64 | . 64 . Successful Hack 34 | . 34 . Lose Combat Pursuer 45 | . 30 15 Influence Decreases 448 | 15 346 87 Entered New Map 16 | . . 16 Time Decay 389 | 15 346 28 Lost Part 43 | . . 43 Squads Dispatched 3 | . 3 . Investigation 1 | . 1 . Extermination . | . . . Reinforcement 2 | . 2 . Assault . | . . . Garrison . | . . . Intercept . | . . . Searches Triggered . | . . . Construction Impeded . | . . . Haulers Reinforced . | . . . Active Scanning Responses . | . . . Cargo Convoy Interrupts . | . . . Stealth | -11 -10 -10 --------- Run | Yrd Mat Sub Distress Signals 4 | . 4 . Communications Jammed . | . . . Distress Signals . | . . . Times Spotted 44 | . 29 15 Peak Tracking Total 5 | . 5 3 Tactical Retreats 3 | . 2 1 Traps | -11 -10 -10 ------- Run | Yrd Mat Sub Traps Triggered 3 | . 1 2 Indirectly . | . . . Trap Hack Attempts . | . . . Triggered . | . . . Disarmed . | . . . Reprogrammed . | . . . Reused 1 | . . 1 Traps Extracted . | . . . Installed 1 | . . 1 Triggered . | . . . Most Traps Carried 1 | . . 1 Machines | -11 -10 -10 ---------- Run | Yrd Mat Sub Machines Disabled . | . . . Max in Single Turn . | . . . Machines Repaired . | . . . Machines Dismantled . | . . . Machines Sabotaged . | . . . Overloaded Fab Kills . | . . . Hacking | -11 -10 -10 --------- Run | Yrd Mat Sub Machines Accessed 9 | . 8 1 Terminals 6 | . 6 . Fabricators . | . . . Repair Stations . | . . . Recycling Units 2 | . 2 . Scanalyzers . | . . . Garrison Access . | . . . Total Hacks 26 | . 21 5 Successful 18 | . 13 5 Failed 8 | . 8 . Catastrophic . | . . . Database Lockouts . | . . . Manual 8 | . 8 . Terminals 19 | . 19 . Fabricators . | . . . Repair Stations . | . . . Recycling Units 2 | . 2 . Scanalyzers . | . . . Garrison Access . | . . . Terminal Hacks 14 | . 9 5 Record 5 | . . 5 Prototype ID Bank 3 | . 3 . Branch Access Points 1 | . 1 . Locate Traps 1 | . 1 . Security Status 1 | . 1 . Hauler Manifests 1 | . 1 . Registered Components 1 | . 1 . Zone Layout 1 | . 1 . Fabricator Hacks . | . . . Repair Station Hacks . | . . . Recycling Unit Hacks 2 | . 2 . Report Inventory 2 | . 2 . Scanalyzer . | . . . Garrison Access Hacks . | . . . Unauthorized Hacks 2 | . 2 . Terminals 2 | . 2 . Botnet 2 | . 2 . Fabricators . | . . . Repair Stations . | . . . Recycling Units . | . . . Scanalyzers . | . . . Garrison Access . | . . . Data Cores Recovered . | . . . Used . | . . . Hacking Detections 6 | . 6 . Full Trace Events . | . . . Feedback Events . | . . . Feedback Blocked . | . . . Robot Schematics Acquired . | . . . Robots Built . | . . . Authchips . | . . . Time . | . . . Total Robot Build Rating . | . . . Part Schematics Acquired . | . . . Parts Built . | . . . Authchips . | . . . Time . | . . . Total Part Build Rating . | . . . Parts Repaired . | . . . Time . | . . . Parts Recycled . | . . . Recycled Matter . | . . . Retrieved Matter . | . . . Retrieved Components . | . . . Parts Scanalyzed . | . . . Part Schematics Acquired . | . . . Parts Damaged . | . . . Bothacking | -11 -10 -10 ------------ Run | Yrd Mat Sub Used RIF Installer . | . . . Robots Hacked . | . . . Non-combat . | . . . Combat . | . . . Robot Hacks Applied . | . . . Relay Couplers Released . | . . . Fabnet Peak Effective % . | . . . Robots Rewired . | . . . Allies Hacked . | . . . Hacks Repelled . | . . . Allies | -11 -10 -10 -------- Run | Yrd Mat Sub Total Allies . | . . . Largest Group . | . . . Highest-Rated Group . | . . . Highest-Rated Ally . | . . . Total Orders . | . . . Ally Attacks . | . . . Total Damage . | . . . Kills . | . . . Allies Corrupted . | . . . Allies Melted . | . . . Intel | -11 -10 -10 ------- Run | Yrd Mat Sub Active Infowar (turns) 2925 | 19 1538 1368 Optics 883 | . . 883 Sensors 323 | . . 323 Seismic 1719 | 19 1538 162 Robot Analysis Total . | . . . Derelict Logs Recovered 1 | . . 1 Drone Launches . | . . . Drone Recoveries . | . . . Exploration | -11 -10 -10 ------------- Run | Yrd Mat Sub Turns Passed 3895 | 156 1538 2201 Spaces Moved 2039 | 78 776 1185 Core 7 | 7 . . Treads 847 | 71 776 . Legs 1185 | . . 1185 Wheels . | . . . Hover . | . . . Flight . | . . . Fastest Speed 50 | 50 160 140 Average Speed 164 | 157 160 167 Slowest Speed 200 | 200 160 200 Overloaded Moves . | . . . Propulsion Burnouts . | . . . Robots Hopped . | . . . Potential Cave-ins . | . . . Cave-ins Triggered . | . . . Exploration Rate (%) 58 | 5 97 74 Regions Visited 2 Branch Regions 1 Pre-discovered Areas 2 | . . 2 Known Exits Taken . | . . . Unknown Exits Taken 2 | 1 1 . Scrap Searched 4 | . . 4 Spaces Dug . | . . . Terrain Destroyed 59 | . . 59 Melee . | . . . Projectile . | . . . AOE 59 | . . 59 Terrain Rammed . | . . . Walls Destroyed . | . . . Machines Disabled . | . . . Actions | -11 -10 -10 --------- Run | Yrd Mat Sub Total 2376 | 98 983 1295 Wait 158 | 5 136 17 Move 2037 | 77 775 1185 Hop . | . . . Pick Up 29 | 4 15 10 Fast Attach 10 | 7 2 1 Attach 15 | . 1 14 Detach . | . . . Swap 12 | . 1 11 Drop 8 | . 6 2 Fire 100 | 5 46 49 Melee 5 | . . 5 Ram . | . . . Kick . | . . . Crush 1 | . 1 . Escape Stasis . | . . . Rewire . | . . . Trap 1 | . . 1 Miscellaneous . | . . . Route ------- -11/Scrapyard -10/Materials (discovered 6 exits: [*Mat x3] / *Min x2 / *Sub) -10/Subcaves History --------- Turn | Location | Event 28 | -11/Scrapyard | Discovered new exit (range 16) 157 | -11/Scrapyard | Entered Materials 331 | -10/Materials | Build established: Mutant 518 | -10/Materials | Discovered new exit (range 8) 716 | -10/Materials | Discovered new exit (range 7) 726 | -10/Materials | Identified exit to Mines 927 | -10/Materials | Discovered new exit (range 4) 1541 | -10/Materials | Discovered new exit (range 5) 1682 | -10/Materials | Discovered new exit (range 9) 1695 | -10/Materials | Entered Subcaves 1776 | -10/Subcaves | Lost 4 parts (2n2w) 2015 | -10/Subcaves | Core integrity fell below 50% 2107 | -10/Subcaves | A swath of the cavern ceiling suddenly collapsed 2307 | -10/Subcaves | Build established: Scavenger-Mutant 2336 | -10/Subcaves | Shifting Twisted Machinery released Mak. Laser 2343 | -10/Subcaves | Shifting Twisted Machinery released Sub. Shrapnel Launcher 2347 | -10/Subcaves | Ambushed by Subdwellers from Twisted Machinery 2675 | -10/Subcaves | Build established: Mutant 2974 | -10/Subcaves | Core integrity fell below 20% 3029 | -10/Subcaves | Lost 3 parts (1p1n1w) 3200 | -10/Subcaves | Learned 4 Materials zone layouts 3232 | -10/Subcaves | Visited Clippyterm 3236 | -10/Subcaves | Learned location of Deep Caves (-7) 3236 | -10/Subcaves | Learned location of Extension (-4) 3384 | -10/Subcaves | Build established: Derelict-Mutant 3813 | -10/Subcaves | Shifting Twisted Machinery released Sub. Monowheel 3896 | -10/Subcaves | Destroyed by IJ-DQS(R) with Subdweller Beam Cannon Last Messages --------------- whole. 03476_ Acquired Battle Rifle. 03577_ Acquired Piercing Trap. 03645_ Acquired 10 matter. Sub. Monowheel falls loose from the Twisted Machinery. 03851_ Dropped Piercing Trap. 03852_ Installed Piercing Trap. 03859_ XD-JG3(R) triggered Piercing Trap. 03859_ Spikes shoot up from the floor. 03859_ XD-JG3(R) suffers critical hit (Impale). 03859_ XD-JG3(R) destroyed. 03873_ Destroyed Sub. Power Source. 03873_ Mak. Leg destroyed. 03879_ 6X-PH3(R) suffers critical hit (Burn). 03879_ WS-CF5(R) destroyed. 03882_ 6X-PH3(R) destroyed. 03889_ PD-JKW(R) destroyed. 03889_ Switching to secondary target: IJ-DQS(R). 03894_ Critical hit (Meltdown: +300). Map ----- +----------------------------------------------------+ | ##???? #?## ????"??????????? | | ### ##???? ## ???#""##????????? | | #?## #????? #????#"""#????????? | | #??# #####?# ##??##"""#????????? | | #??# ## ### #### " ##???????? | | ###??### ## "###?????? | | ???????#### #?# #?? """"" #?????? | | ??????????### ### #?????# #?????? | | ????????????## ## ## ######## #?????? | | ?????????????# ### # # ##?????? | | ?????????????# # ## ####??????? | | ?????????????# ## # ## # ##?????????? | | ?????????????# ### ###?#### #??###????? | | ?????????????# #### ###### ##?# ###??? | | ?????????????# # ## ## #??? | | ?????????????# ## ##### #??? | | ?????????????##### ### #???##### ### #??? | | ?????????????????# ### ###????# ### ##??? | | ?????????????????# #?# ##???# ## #???? | | ?????????????????####?# ##### #??? | | ?????????????????????## ## ## #?? | | ??????????????# ???## ########?# #? | | ??????????????# ## ##???????? #? | | ???????????????# R ## #????????? ##? | | ????????????????# !%[ ### ##????##????##?? | | ????????????????# @### ##### ## #??? | | ???????????????# #?## ### #???? | | ????????????# #??### ##???????? | | ????????????# #????###=*# " #???????? | | ????????????# ##??????##%" ##??????? | | ????????????# ###????????## &#??????? | | ????????????# & ????????????# #?????? | | ????????????## & ?????????????# " """???? | | ?????????????# ?????????????#### " ### #??? | | ?????????????# ?????????????????? #??????? | | ?????????????# ??????????????????# #?????? | | ??????????????# ##???????????????????? ##?????? | | ???????????????? ?????????????????????? #??????? | | ?????????????????????????????????????????##??????? | | ?????????????????????????????????????????????????? | | ?????????????????????????????????????????????????? | | ?????????????????????????????????????????????????? | | ?????????????????????????????????????????????????? | | ?????????????????????????????????????????????????? | | ?????????????????????????????????????????????????? | | ?????????????????????????????????????????????????? | | ?????????????????????????????????????????????????? | | ?????????????????????????????????????????????????? | | ?????????????????????????????????????????????????? | | ?????????????????????????????????????????????????? | +----------------------------------------------------+ Best States ------------- Heat Dissipation 25 Energy Generation 15 Energy Capacity 250 Matter Stores 300 Matter Capacity 300 Sight Range 21 Robot Scan Range 14 Terrain Scan Density 10 Armor Coverage 100 Evasion (%) 55 Recoil Reduction 2 Item Schematics ----------------- None Robot Schematics ------------------ None Fabricated ------------ Nothing Repaired ---------- Nothing Alien Tech Used ----------------- None Achievements -------------- None Challenges ------------ None Game ------ Seed GuidanceActuatorRigger Manual? 0 Play Time 00:30:27 Cumulative 91.0 hours Start 2025.07.20 @ 14:49:09 End 2025.07.20 @ 15:18:33 Sessions 1 Manual Loads 0 Difficulty Rogue Special Mode None Game No. 65 Rogue 65 Adventurer 0 Explorer 0 Win Type - Total 0 Types 0/0/0/0/0/0/0/0/0/0 Lore% 44 Gallery% 38 Achievement% 32 Wizard Run 0 Options --------- Layout 1 ASCII 0 Keyboard 0 Movement Numpad Keybinds 0 Fullscreen 1 Font 24/Smallcaps Map View 50x35 Zoom Use 0% Tactical HUD 1 Map Filters NONE Filters NONE Steam 1 RUN: 5f13fce6-d67f-4724-a134-e6f4e2cf9998